Cogmind - Beta 13 *** ADVENTURER MODE // 2024.07.03 @ 08:36:07 // Winter2019/RPGLIKE Player: nivertius Result: Destroyed by Y-45 Defender with Beam Rifle Performance ------------- Evolutions (2) 1000 Regions Visited (4) 800 Robots Destroyed (38) 190 Value Destroyed (1271) 1271 Prototype IDs (17) 340 Alien Tech Used (0) 0 Bonus (-201) -201 TOTAL SCORE: 3400 Bonus ------- Friendly Fire -201 Cogmind --------- Core Integrity 0/600 Matter 295/300 Energy 160/160 System Corruption 1% Temperature Cool (9) Movement Rolling (100) Location -8/Materials Parts ------- > --- POWER (1) -------- Light Nuclear Core > --- PROPULSION (4) --- Armored Huge Wheel Armored Huge Wheel > --- UTILITY (3) ------ Melee Analysis Suite > --- WEAPON (2) ------- Heavy Particle Gun Katana > --- INVENTORY (2) ---- Spiked Treads Rocket Launcher Peak State ------------ > --- POWER ------------ Subdweller Power Source Light Angular Momentum Engine > --- PROPULSION ------- Armored Huge Wheel Armored Huge Wheel > --- UTILITY ---------- Makeshift Hacking Suite Rainbow Chip > --- WEAPON ----------- Subdweller Laser Beamcaster Subdweller Beam Cannon > --- INVENTORY -------- Spiked Treads Rocket Launcher [Rating: 49] Favorites ----------- Power Light Angular Momentum Engine Engine Light Angular Momentum Engine Power Core Light Nuclear Core Propulsion Subdweller Monowheel Treads Spiked Treads Leg Carbon-fiber Leg Wheel Subdweller Monowheel Flight Unit Flight Unit Utility Scrap Shield Device Subdweller Optics Processor Rainbow Chip Hackware Makeshift Hacking Suite Protection Scrap Shield Weapon Beamcaster Energy Gun Beamcaster Energy Cannon Subdweller Beam Cannon Ballistic Gun Subdweller Machine Gun Launcher Rocket Launcher Special Weapon Flamer Impact Weapon Hammer Slashing Weapon Katana Build | -11 -10 -10 -10 -8 ------- Run | Yrd Mat Min Sub Mat Slots Evolved 6 | . 1 1 2 2 Power . | . . . . . Propulsion 3 | . . 1 . 2 Utility 2 | . 1 . 1 . Weapon 1 | . . . 1 . Parts Attached 55 | 3 4 4 34 10 Power 9 | 1 1 1 4 2 Engine 7 | 1 1 1 4 . Core 2 | . . . . 2 Reactor . | . . . . . Propulsion 18 | 1 . 3 12 2 Treads 2 | . . . 2 . Leg 2 | . . . 2 . Wheel 11 | 1 . . 8 2 Hover . | . . . . . Flight 3 | . . 3 . . Utility 15 | . 2 . 9 4 Device 7 | . 1 . 5 1 Storage . | . . . . . Processor 3 | . 1 . 1 1 Hackware 1 | . . . 1 . Protection 4 | . . . 2 2 Artifact . | . . . . . Weapon 13 | 1 1 . 9 2 Energy Gun 4 | . . . 3 1 Energy Cannon 2 | . . . 2 . Ballistic Gun 3 | 1 . . 2 . Ballistic Cannon . | . . . . . Launcher 1 | . . . 1 . Special Weapon 1 | . . . 1 . Impact Weapon 1 | . 1 . . . Slashing Weapon 1 | . . . . 1 Piercing Weapon . | . . . . . Special Melee Weapon . | . . . . . Unidentified Prototypes 2 | . . . 1 1 Parts Lost 2 | . . . 1 1 Power . | . . . . . Propulsion 1 | . . . 1 . Utility 1 | . . . . 1 Weapon . | . . . . . Highest Loss Streak 1 | . . . 1 1 To Critical Strikes . | . . . . . Average Slot Usage (%) 77 | . 96 99 71 66 Engine 15 | . 22 16 15 4 Treads 1 | . . . 2 . Leg 2 | . . . 3 . Wheel 11 | . 22 1 9 19 Flight 3 | . . 30 1 . Device 8 | . 18 16 6 . Processor 6 | . 12 16 3 5 Hackware 2 | . . . 3 5 Protection 4 | . . . 5 7 Energy Gun 7 | . . . 9 7 Energy Cannon 4 | . . . 6 2 Ballistic Gun 1 | . 3 . 2 . Impact Weapon 3 | . 17 16 . . Naked Turns . | . . . . . Heaviest Build 51 | 7 8 8 51 42 Greatest Support 60 | 10 10 10 60 56 Greatest Overweight (x) 10 | . . 1 10 10 Average Overweight (x) . | . . . . . Largest Inventory Capacity 2 | 1 1 2 2 2 Average Capacity 1 | . 1 1 2 2 Most Carried 2 | 1 1 2 2 2 Average Carried 1 | . . 1 1 2 Final Capacity 2 | 1 1 2 2 2 Final Carried 2 | 1 1 2 2 2 Class Distribution -------------------- 54% | Hacker-Mutant 24% | Hacker-Gunner 10% | Subdweller-Mutant 4% | Subdweller-Gunner 4% | Mutant Dominant Class ---------------- Hacker-Mutant | -10/Materials Hacker-Mutant | -10/Mines Hacker-Mutant | -10/Subcaves Hacker-Mutant | -8/Materials Resources | -11 -10 -10 -10 -8 ----------- Run | Yrd Mat Min Sub Mat Matter Collected 919 | 69 264 40 456 90 Remotely . | . . . . . Salvage Created 1163 | . 227 116 507 313 Parts 65 | 1 9 5 40 10 Haulers Intercepted . | . . . . . Recyclers Shooed . | . . . . . Parts Field Recycled . | . . . . . Retrieved Matter . | . . . . . Parts Self-Destructed 21 | . . . 21 . Prevented . | . . . . . Kills | -11 -10 -10 -10 -8 ------- Run | Yrd Mat Min Sub Mat Combat Hostiles Destroyed 45 | 1 9 13 16 6 Melee 18 | . 3 9 1 5 Guns 10 | 1 1 . 8 . Cannons 6 | . . . 5 1 AOE 2 | . . . 2 . Classes Destroyed 8 | 1 2 2 2 1 Worker 1 | . 1 . . . Builder 1 | . . 1 . . Swarmer 5 | . 2 1 2 . Grunt 16 | 1 7 2 2 4 Duelist 1 | . . . . 1 Sentry 2 | . . . 1 1 Subdweller 11 | . . . 11 . Assembled 10 | . . 10 . . Thug 1 | . . . 1 . Best Kill Streak 4 | 1 3 4 4 2 Combat Bots Only 4 | 1 3 4 4 2 Max Kills in Single Turn 2 | 1 1 1 2 1 Gunslinging . | . . . . . Exploded 2 | . . . 2 . Melee 1 | . 1 1 1 1 Uniques/NPCs Destroyed . | . . . . . Combat | -11 -10 -10 -10 -8 -------- Run | Yrd Mat Min Sub Mat Hostile Shots Fired 348 | 4 96 49 104 95 Missed 84 | 2 19 14 28 21 Damage Taken 3242 | 17 654 340 1301 930 Core 2354 | 17 560 291 978 508 Absorbed by Shields . | . . . . . Redirected to Core 1429 | . 288 157 548 436 Ignored by Resistances 898 | 5 211 103 319 260 Core Remaining (%) 79 | 100 . . 58 . Volleys Fired 118 | 4 17 . 89 8 Largest 3 | 1 1 . 3 2 Hottest 215 | 20 20 . 215 155 Shots Fired 169 | 4 17 . 136 12 Gun 120 | 4 17 . 95 4 Cannon 42 | . . . 34 8 Launcher 3 | . . . 3 . Special 4 | . . . 4 . Kinetic 35 | 4 17 . 14 . Thermal 131 | . . . 119 12 Explosive 3 | . . . 3 . Electromagnetic . | . . . . . Robot Hit Streak 39 | 1 18 . 39 8 Robot Miss Streak 3 | 1 . . 2 3 Penetration Max . | . . . . . Secondary Targets . | . . . . . Shots Hit Robots 204 | 2 46 22 94 40 Core Hits 50 | 2 7 7 23 11 Critical Kills 3 | . 1 2 . . Critical Parts Destroyed 7 | . 3 4 . . Critical Strikes 20 | . 4 6 4 6 Burn 5 | . . . 4 1 Smash 10 | . 4 6 . . Sever 5 | . . . . 5 Melee Attacks 117 | . 38 41 6 32 Impact 85 | . 38 41 6 . Slashing 32 | . . . . 32 Piercing . | . . . . . Sneak Attacks 4 | . 2 2 . . Combat Hostiles 1 | . . 1 . . Follow-up Attacks . | . . . . . Damage Inflicted 5409 | 26 1038 711 2382 1252 Guns 1660 | 26 205 . 1366 63 Cannons 802 | . . . 659 143 Explosions 123 | . . . 123 . Melee 2780 | . 833 711 190 1046 Ramming . | . . . . . Kinetic 471 | 26 205 . 240 . Thermal 2035 | . . . 1829 206 Explosive 123 | . . . 123 . Electromagnetic . | . . . . . Impact 1734 | . 833 711 190 . Slashing 1046 | . . . . 1046 Piercing . | . . . . . Highest Corruption 1 | . 1 1 1 1 Average Corruption 1 | . 1 1 1 1 Corruption Purged . | . . . . . Corruption Blocked . | . . . . . Effects 22 | . . 2 20 . Message Errors 6 | . . . 6 . Matter Fused 2 | . . . 2 . Heat Flow Errors 5 | . . . 5 . Energy Discharges 4 | . . 1 3 . Parts Rejected 1 | . . 1 . . Data Loss (minor) 1 | . . . 1 . Data Loss (major) 1 | . . . 1 . Misfires 1 | . . . 1 . Alerts 1 | . . . 1 . Overload Shots . | . . . . . Overflow Damage 355 | . 125 193 37 . Projectiles . | . . . . . Explosions 7 | . . . 7 . Melee 348 | . 125 193 30 . Knockbacks 9 | . 2 4 3 . Impact 9 | . 2 4 3 . Kinetic . | . . . . . Secondary . | . . . . . Self-Inflicted Damage . | . . . . . Shots . | . . . . . Rammed . | . . . . . Targets Rammed . | . . . . . Kicked . | . . . . . Crushed . | . . . . . Highest Temperature 676 | . 2 8 676 544 Average Temperature 152 | . 2 4 112 299 Received Heat Transfer 1378 | 12 402 109 252 603 Effects 29 | . . . 19 10 Shutdowns 8 | . . . 5 3 Energy Bleed 2 | . . . 1 1 Interference 3 | . . . 3 . Matter Decay 1 | . . . 1 . Short Circuit 2 | . . . . 2 Damage (minor) 2 | . . . 1 1 Damage (major) 9 | . . . 6 3 Damage (core) 2 | . . . 2 . Siege Activations . | . . . . . Robots Corrupted . | . . . . . Combat Hostiles . | . . . . . Parts Fried 9 | . 5 4 . . Impact Corruptions 20 | . 8 11 1 . Robots Melted . | . . . . . Combat Hostiles . | . . . . . Parts Melted 6 | . . . 6 . Heat Transferred 3025 | . . . 2655 370 Parts Sabotaged . | . . . . . Parts Stolen . | . . . . . Parts Stripped . | . . . . . Power Chain Reactions . | . . . . . Alert | -11 -10 -10 -10 -8 ------- Run | Yrd Mat Min Sub Mat Peak Influence 280 | 20 280 167 . 134 Initial 55 | . 11 55 . . Average 97 | 5 122 114 . 45 Maximum Alert Level 1 | . 1 . . . Low Security (%) 94 | 100 86 100 . 100 Level 1 5 | . 13 . . . Level 2 . | . . . . . Level 3 . | . . . . . Level 4 . | . . . . . Level 5 . | . . . . . High Security . | . . . . . Max Security . | . . . . . Squads Dispatched 1 | . 1 . . . Investigation 1 | . 1 . . . Extermination . | . . . . . Reinforcement . | . . . . . Assault . | . . . . . Garrison . | . . . . . Intercept . | . . . . . Searches Triggered . | . . . . . Construction Impeded . | . . . . . Haulers Reinforced . | . . . . . Active Scanning Responses . | . . . . . Cargo Convoy Interrupts . | . . . . . Stealth | -11 -10 -10 -10 -8 --------- Run | Yrd Mat Min Sub Mat Distress Signals 1 | . 1 . . . Communications Jammed . | . . . . . Distress Signals . | . . . . . Times Spotted 94 | 1 20 16 48 9 Peak Tracking Total 6 | 1 6 5 6 5 Tactical Retreats 7 | . 3 1 2 1 Traps | -11 -10 -10 -10 -8 ------- Run | Yrd Mat Min Sub Mat Traps Triggered 5 | . 3 . . 2 Indirectly . | . . . . . Trap Hack Attempts . | . . . . . Triggered . | . . . . . Disarmed . | . . . . . Reprogrammed . | . . . . . Reused . | . . . . . Traps Extracted . | . . . . . Installed . | . . . . . Triggered 1 | . . . 1 . Machines | -11 -10 -10 -10 -8 ---------- Run | Yrd Mat Min Sub Mat Machines Disabled 1 | . . . 1 . Max in Single Turn 1 | . . . 1 . Machines Repaired . | . . . . . Machines Dismantled . | . . . . . Machines Sabotaged . | . . . . . Overloaded Fab Kills . | . . . . . Hacking | -11 -10 -10 -10 -8 --------- Run | Yrd Mat Min Sub Mat Machines Accessed 9 | . 5 . 2 2 Terminals 6 | . 4 . . 2 Fabricators . | . . . . . Repair Stations . | . . . . . Recycling Units 1 | . 1 . . . Scanalyzers . | . . . . . Garrison Access . | . . . . . Total Hacks 40 | . 24 . 10 6 Successful 28 | . 13 . 10 5 Failed 11 | . 10 . . 1 Catastrophic . | . . . . . Database Lockouts 1 | . 1 . . . Manual 21 | . 18 . . 3 Terminals 26 | . 20 . . 6 Fabricators . | . . . . . Repair Stations . | . . . . . Recycling Units 4 | . 4 . . . Scanalyzers . | . . . . . Garrison Access . | . . . . . Terminal Hacks 20 | . 7 . 10 3 Record 9 | . . . 9 . Prototype ID Bank 4 | . 4 . . . Level Access Points 1 | . 1 . . . Branch Access Points 1 | . 1 . . . Unreport Threat 1 | . . . . 1 Locate Traps 1 | . 1 . . . Registered Components 1 | . . . . 1 Registered Prototypes 1 | . . . . 1 Derelict Proto ID Bank 1 | . . . 1 . Fabricator Hacks . | . . . . . Repair Station Hacks . | . . . . . Recycling Unit Hacks 1 | . 1 . . . Retrieve Components 1 | . 1 . . . Scanalyzer . | . . . . . Garrison Access Hacks . | . . . . . Unauthorized Hacks 7 | . 5 . . 2 Terminals 6 | . 4 . . 2 Botnet 6 | . 4 . . 2 Fabricators . | . . . . . Repair Stations . | . . . . . Recycling Units 1 | . 1 . . . Reject 1 | . 1 . . . Scanalyzers . | . . . . . Garrison Access . | . . . . . Data Cores Recovered . | . . . . . Used . | . . . . . Hacking Detections 6 | . 5 . . 1 Full Trace Events . | . . . . . Feedback Events . | . . . . . Feedback Blocked . | . . . . . Robot Schematics Acquired . | . . . . . Robots Built . | . . . . . Authchips . | . . . . . Time . | . . . . . Total Robot Build Rating . | . . . . . Part Schematics Acquired . | . . . . . Parts Built . | . . . . . Authchips . | . . . . . Time . | . . . . . Total Part Build Rating . | . . . . . Parts Repaired . | . . . . . Time . | . . . . . Parts Recycled . | . . . . . Recycled Matter . | . . . . . Retrieved Matter . | . . . . . Retrieved Components 2 | . 2 . . . Parts Scanalyzed . | . . . . . Part Schematics Acquired . | . . . . . Parts Damaged . | . . . . . Bothacking | -11 -10 -10 -10 -8 ------------ Run | Yrd Mat Min Sub Mat Used RIF Installer . | . . . . . Robots Hacked . | . . . . . Non-combat . | . . . . . Combat . | . . . . . Robot Hacks Applied . | . . . . . Relay Couplers Released . | . . . . . Fabnet Peak Effective % . | . . . . . Robots Rewired . | . . . . . Allies Hacked . | . . . . . Hacks Repelled . | . . . . . Allies | -11 -10 -10 -10 -8 -------- Run | Yrd Mat Min Sub Mat Total Allies 1 | . . 1 . . Largest Group 1 | . . 1 . . Highest-Rated Group 31 | . . 31 . . Highest-Rated Ally 31 | . . 31 . . Total Orders . | . . . . . Ally Attacks 15 | . . 15 . . Total Damage 145 | . . 145 . . Kills 3 | . . 3 . . Allies Corrupted . | . . . . . Allies Melted 1 | . . 1 . . Intel | -11 -10 -10 -10 -8 ------- Run | Yrd Mat Min Sub Mat Robot Analysis Total . | . . . . . Derelict Logs Recovered 2 | . . 1 1 . Drone Launches . | . . . . . Drone Recoveries . | . . . . . Exploration | -11 -10 -10 -10 -8 ------------- Run | Yrd Mat Min Sub Mat Turns Passed 4980 | 49 656 455 3449 371 Spaces Moved 3702 | 50 607 750 2067 228 Core 165 | 17 . 1 145 2 Treads 283 | . . . 283 . Legs 278 | . . . 278 . Wheels 2225 | 33 607 6 1353 226 Hover . | . . . . . Flight 751 | . . 743 8 . Fastest Speed 37 | 50 80 37 37 100 Average Speed 111 | 69 80 37 149 105 Slowest Speed 550 | 80 80 120 550 550 Overloaded Moves . | . . . . . Propulsion Burnouts . | . . . . . Robots Hopped 1 | . . 1 . . Cave-ins Triggered . | . . . . . Exploration Rate (%) 62 | 6 97 98 94 19 Regions Visited 4 Branch Regions 2 Pre-discovered Areas . | . . . . . Known Exits Taken 2 | . 1 1 . . Unknown Exits Taken 2 | 1 . . 1 . Scrap Searched 9 | . . 1 8 . Spaces Dug 19 | . 1 6 12 . Terrain Destroyed 29 | . 1 6 19 3 Melee 7 | . 1 6 . . Projectile 3 | . . . . 3 AOE 19 | . . . 19 . Terrain Rammed . | . . . . . Walls Destroyed . | . . . . . Machines Disabled . | . . . . . Actions | -11 -10 -10 -10 -8 --------- Run | Yrd Mat Min Sub Mat Total 4186 | 58 693 849 2286 300 Wait 55 | . 6 34 11 4 Move 3696 | 49 606 747 2066 228 Hop 1 | . . 1 . . Pick Up 7 | 1 1 3 2 . Fast Attach 47 | 3 3 4 28 9 Attach 1 | . . . 1 . Detach 6 | . . . 4 2 Swap 7 | . 1 . 5 1 Drop 42 | . 3 4 26 9 Fire 118 | 4 17 . 89 8 Melee 117 | . 38 41 6 32 Ram . | . . . . . Kick . | . . . . . Crush . | . . . . . Escape Stasis . | . . . . . Rewire . | . . . . . Trap . | . . . . . Miscellaneous 89 | 1 18 15 48 7 Route ------- -11/Scrapyard -10/Materials (discovered 5 exits: *Mat x3 / *Min x2) -10/Mines (discovered 3 exits: *Mat x2 / *Sub) -10/Subcaves (discovered 3 exits: *Mat x2 / [*Rec]) -8/Materials History --------- Turn | Location | Event 2 | -11/Scrapyard | Met Revision 17 27 | -11/Scrapyard | Discovered new exit (range 8) 50 | -11/Scrapyard | Entered Materials 117 | -10/Materials | Discovered new exit (range 13) 217 | -10/Materials | Identified exit to Materials 315 | -10/Materials | Upgraded with Utility slot (x1) 413 | -10/Materials | Identified exit to Mines 491 | -10/Materials | Central database locked down 507 | -10/Materials | Build established: Hacker-Mutant 557 | -10/Materials | Core integrity fell below 50% 706 | -10/Materials | Entered Mines 708 | -10/Mines | Reached level 2 731 | -10/Mines | Upgraded with Propulsion slot (x1) 744 | -10/Mines | Assembled infested the area 747 | -10/Mines | Received a Mining Laser from a helpful Derelict 749 | -10/Mines | Assisted by a Guerilla fighting off Assembled 777 | -10/Mines | Discovered exit to Materials (range 9) 933 | -10/Mines | Found a hidden stash of uninstalled traps 960 | -10/Mines | Received a Rocket Launcher from a helpful Derelict 981 | -10/Mines | Learned Materials stockpile data 996 | -10/Mines | Discovered exit to Materials (range 10) 1157 | -10/Mines | Discovered new exit (range 11) 1161 | -10/Mines | Identified exit to Subcaves 1161 | -10/Mines | Entered Subcaves 1163 | -10/Subcaves | Reached level 3 1164 | -10/Subcaves | A Subdweller sparked back to life 1164 | -10/Subcaves | A Subdweller sparked back to life 1164 | -10/Subcaves | A Subdweller sparked back to life 1189 | -10/Subcaves | Upgraded with Weapon slot (x1) 1189 | -10/Subcaves | Found Prototype Energy Cannon 1189 | -10/Subcaves | Identified Powered Cannon 1191 | -10/Subcaves | Attached Powered Cannon, gained temporary slot: Power 1577 | -10/Subcaves | A swath of the cavern ceiling suddenly collapsed 1629 | -10/Subcaves | Discovered new exit (range 14) 1641 | -10/Subcaves | Ambushed by swarm of Subdwellers 1856 | -10/Subcaves | Upgraded with Utility slot (x1) 2163 | -10/Subcaves | Discovered new exit (range 14) 2659 | -10/Subcaves | A swath of the cavern ceiling suddenly collapsed 3068 | -10/Subcaves | Shifting Twisted Machinery released Mak. Hacking Suite 3070 | -10/Subcaves | Shifting Twisted Machinery released Mak. Power Source 3123 | -10/Subcaves | Build established: Subdweller-Mutant 3162 | -10/Subcaves | Visited 4L-MR0's lab 3179 | -10/Subcaves | Found Rainbow Chip 3180 | -10/Subcaves | Attached Rainbow Chip, gained temporary slots: Power, Propulsion, Utility, Weapon 3243 | -10/Subcaves | Discovered new exit (range 17) 3271 | -10/Subcaves | Visited Clippyterm 3681 | -10/Subcaves | Build established: Hacker-Gunner 4610 | -10/Subcaves | Entered Materials 4612 | -8/Materials | Reached level 4 4612 | -8/Materials | Reached level 5 4612 | -8/Materials | Reached level 6 4629 | -8/Materials | Upgraded with Propulsion slot (x1) 4634 | -8/Materials | Upgraded with Propulsion slot (x1) 4681 | -8/Materials | Core integrity fell below 50% 4942 | -8/Materials | Build established: Hacker-Mutant 4962 | -8/Materials | Core integrity fell below 20% 4981 | -8/Materials | Destroyed by Y-45 Defender with Beam Rifle Last Messages --------------- 04881_ Acquired 20 matter. 04903_ G-47 Trooper Aluminum Leg severed. 04915_ G-47 Trooper Imp. Heat Sink severed. 04916_ R-06 Scavenger collects Imp. Heat Sink. 04917_ G-47 Trooper destroyed. 04919_ R-06 Scavenger collects Aluminum Leg. 04920_ K-01 Serf collects debris. 04921_ Dropped Lgt. Nuclear Core. 04923_ R-06 Scavenger collects Lgt. Nuclear Core. 04924_ K-01 Serf collects debris. 04942_ Triggered Shock Trap. 04942_ The floor emits a surge of raw power. 04942_ System corrupted (+1). 04943_ Triggered Shock Trap. 04943_ The floor emits a surge of raw power. 04962_ Destroyed Lgt. Armor Plating. 04964_ Critical hit (Burn: +37). 04965_ Hrd. Heavy Armor Plating destroyed. 04967_ Y-45 Defender destroyed. 04976_ Y-45 Defender Hvy. Assault Rifle severed. Map ----- +----------------------------------------------------+ | #???????+#????????????????????????????????? | | #??????? ????????????????????????????????? | | #???????T ????????????????????????????????? | | ########??????? ????????????????????????????????? | | ############??# #????????????????????????????????? | | #??# #????????????????????????????????? | | #??# #????????????????????????????????? | | !! #??# #????????????????????????????????? | | !! #?## ##???????????????????????????????? | | !! ! ### #???????????????????????????????? | | + #???????????????????????????????? | | #+########## #???????????????????????????????? | | ######## % #########???????????????????????? | | % # ???????????????????????? | | %########## # ???????????????????????? | | +####????????# #? ????????????????????????? | | ??????######## #? ????????????????????????? | | ??????# """ # #?? ????????????????????????? | | ??????# """ # #??? ????????????????????????? | | ??????# """ + #??? ! ????????????????????????? | | ??????# # #???? ????????????????????????? | | ??????#! # #??###;###??????????????????????? | | ??????# # #### ##########+###?????????? | | ??????######## ^ [ ????????? | | ?????????????# =%! ^ ????????? | | ?????????????# ^ @Y ????????? | | ?????????????####+### ###+#######????????????? | | ????????????????????#######??????????????????????? | | ?????????????????????????????????????????????????? | | ?????????????????????????????????????????????????? | | ?????????????????????????????????????????????????? | | ?????????????????????????????????????????????????? | | ?????????????????????????????????????????????????? | | ?????????????????????????????????????????????????? | | | | | | | | | | | | | | | | | | | | | | | | | | | | | | | | | +----------------------------------------------------+ Best States ------------- Heat Dissipation 51 Coolant Potential 50 Energy Generation 28 Energy Capacity 300 Matter Stores 300 Matter Capacity 300 Sight Range 21 Robot Scan Range 14 Terrain Scan Density 10 Armor Coverage 800 Resistance: KI 20 Resistance: TH 20 Resistance: EX 20 Resistance: EM 20 Resistance: I 20 Resistance: S 20 Resistance: P 20 Evasion (%) 62 Melee Accuracy 5 Recoil Reduction 1 Offensive Hacking 26 Defensive Hacking 5 Item Schematics ----------------- None Robot Schematics ------------------ None Fabricated ------------ Nothing Alien Tech Used ----------------- None Achievements -------------- None Challenges ------------ None RPGLIKE | -11 -10 -10 -10 -8 --------- Run | Yrd Mat Min Sub Mat Levels Raised 5 | . . 1 1 3 XP Earned 12948 | 4100 1110 850 1550 5338 XP Spent 5470 | 250 900 1000 1300 2020 Upgrades 12 | 1 3 2 2 4 Propulsion Slot 3 | . . 1 . 2 Utility Slot 2 | . 1 . 1 . Weapon Slot 1 | . . . 1 . Heat Dissipation 2 | . . . . 2 Inventory Capacity 2 | 1 . 1 . . Hack Attack % 1 | . 1 . . . Hack Defense % 1 | . 1 . . . Protomatter Created 661 | 40 105 125 283 108 Integrity Restored 1822 | 17 385 315 952 153 Core 1752 | 17 357 315 910 153 Parts 70 | . 28 . 42 . Protomatter Decayed 171 | . 10 60 101 . Game ------ Seed PrecisionElectronRigger Manual? 0 Play Time 00:49:34 Cumulative 46.0 hours Start 2024.07.03 @ 07:46:23 End 2024.07.03 @ 08:36:07 Sessions 1 Manual Loads 0 Difficulty Adventurer Special Mode Winter2019/RPGLIKE Game No. 23 Rogue 6 Adventurer 17 Explorer 0 Win Type - Total 2 Types 1/0/0/1/0/0/0/0/0 Lore% 49 Gallery% 60 Achievement% 54 Wizard Run 0 Options --------- Layout 0 ASCII 0 Keyboard 1 Movement Numpad Keybinds 0 Fullscreen 1 Font 36/Crisp Map View 76x50 Zoom Use 0% Tactical HUD 1 Map Filters NONE Filters NONE Steam 1 RUN: 7458283d-2ade-4328-b360-ae04992321ac